Cogmind - Beta 14 @@@ ROGUE MODE // 2025.05.05 @ 16:36:04 Player: Rotpup_ Result: Destroyed by as-09231 with Assembled Blade Performance ------------- Evolutions (0) 0 Regions Visited (4) 800 Robots Destroyed (13) 65 Value Destroyed (349) 349 Prototype IDs (33) 660 Alien Tech Used (0) 0 Bonus (239) 239 TOTAL SCORE: 2113 Bonus ------- Follower Combat Kills 39 Aligned with FarCom 300 Friendly Fire -100 Cogmind --------- Core Integrity 0/250 Matter 73/300 Energy 100/100 System Corruption 5% Temperature Warm (159) Movement Core (250) Ox4 Location -9/Mines Parts ------- > --- POWER (1) -------- (None) > --- PROPULSION (2) --- (None) > --- UTILITY (2) ------ Medium Storage Unit Signal Interpreter > --- WEAPON (2) ------- Rocket Launcher > --- INVENTORY (10) --- Light Ion Engine Improved Ion Engine Light Treads Faulty Experimental Sensor Array Medium Laser Assault Rifle Datajack Field Lobotomy Kit (5) Peak State ------------ > --- POWER ------------ Light Nuclear Core > --- PROPULSION ------- Light Treads Light Treads > --- UTILITY ---------- Medium Storage Unit Signal Interpreter > --- WEAPON ----------- Beam Rifle Rocket Launcher > --- INVENTORY -------- Light Ion Engine Improved Ion Engine Light Treads Experimental Sensor Array Medium Laser Assault Rifle Datajack Field Lobotomy Kit [Rating: 13] Favorites ----------- Power Light Nuclear Core Engine Ion Engine Power Core Light Nuclear Core Propulsion Light Treads Treads Light Treads Utility Huge Storage Unit Storage Huge Storage Unit Processor Signal Interpreter Weapon Beam Rifle Energy Gun Beam Rifle Ballistic Gun Assault Rifle Launcher Grenade Launcher Special Melee Weapon Datajack Build | -11 -10 -10 -10 -9 ------- Run | Yrd Mat Min Exi Min Slots Evolved . | . . . . . Power . | . . . . . Propulsion . | . . . . . Utility . | . . . . . Weapon . | . . . . . Parts Attached 18 | 6 2 6 3 1 Power 3 | 1 . 2 . . Engine 2 | 1 . 1 . . Core 1 | . . 1 . . Reactor . | . . . . . Propulsion 4 | 2 . 2 . . Treads 4 | 2 . 2 . . Leg . | . . . . . Wheel . | . . . . . Hover . | . . . . . Flight . | . . . . . Utility 4 | 1 2 . 1 . Device . | . . . . . Storage 3 | 1 1 . 1 . Processor 1 | . 1 . . . Hackware . | . . . . . Protection . | . . . . . Artifact . | . . . . . Weapon 7 | 2 . 2 2 1 Energy Gun 2 | 1 . 1 . . Energy Cannon . | . . . . . Ballistic Gun 1 | 1 . . . . Ballistic Cannon . | . . . . . Launcher 3 | . . 1 1 1 Special Weapon . | . . . . . Impact Weapon . | . . . . . Slashing Weapon . | . . . . . Piercing Weapon . | . . . . . Special Melee Weapon 1 | . . . 1 . Unidentified Prototypes . | . . . . . Parts Lost 7 | . 1 1 . 5 Power 1 | . . . . 1 Propulsion 3 | . . 1 . 2 Utility . | . . . . . Weapon 3 | . 1 . . 2 Highest Loss Streak 5 | . 1 1 . 5 To Critical Strikes . | . . . . . Average Slot Usage (%) 97 | . 88 99 100 90 Engine 3 | . 14 1 . . Core 10 | . . 12 14 14 Treads 27 | . 28 27 28 18 Storage 14 | . 14 14 14 14 Processor 12 | . 4 14 14 14 Energy Gun 13 | . 13 13 14 14 Ballistic Gun 2 | . 14 . . . Launcher 10 | . . 14 10 14 Special Melee Weapon 1 | . . . 3 . Peak Build Rating 13 | 6 7 11 12 13 Average Rating 9 | 3 6 10 11 11 On Entrance 7 | . 6 6 11 12 Naked Turns . | . . . . . Heaviest Build 93 | 14 89 93 91 22 Greatest Support 40 | 40 40 40 40 40 Greatest Overweight (x) 5 | 1 2 4 2 5 Average Overweight (x) 1 | . 1 2 1 1 Largest Inventory Capacity 25 | 8 25 25 25 10 Average Capacity 23 | 7 23 25 24 10 Most Carried 10 | 7 4 8 10 9 Average Carried 6 | 2 2 6 8 8 Final Capacity 25 | 8 25 25 10 10 Final Carried 9 | 2 4 8 9 8 Class Distribution -------------------- 76% | Scavenger-Mutant 23% | Mutant Dominant Class ---------------- Mutant | -10/Materials Scavenger-Mutant | -10/Mines Scavenger-Mutant | -10/Exiles Mutant | -9/Mines Resources | -11 -10 -10 -10 -9 ----------- Run | Yrd Mat Min Exi Min Matter Collected 363 | 242 60 61 . . Remotely . | . . . . . Salvage Created 410 | 64 110 194 . 42 Parts 30 | 2 7 19 . 2 Haulers Intercepted . | . . . . . Recyclers Shooed 1 | . . 1 . . Parts Field Recycled . | . . . . . Retrieved Matter . | . . . . . Parts Self-Destructed . | . . . . . Prevented . | . . . . . Kills | -11 -10 -10 -10 -9 ------- Run | Yrd Mat Min Exi Min Combat Hostiles Destroyed 17 | . 2 6 . 9 Guns 4 | . 2 2 . . AOE 13 | . . 4 . 9 Classes Destroyed 6 | 1 1 2 . 2 Worker 3 | . . . . 3 Tunneler 1 | . . 1 . . Recycler 1 | 1 . . . . Grunt 6 | . 2 4 . . Sentry 2 | . . 2 . . Assembled 9 | . . . . 9 Best Kill Streak 12 | 1 1 3 . 12 Combat Bots Only 9 | . 1 2 . 9 Max Kills in Single Turn 4 | 1 1 2 . 4 Gunslinging . | . . . . . Exploded 4 | . . 1 . 4 Melee . | . . . . . Uniques/NPCs Destroyed . | . . . . . Combat | -11 -10 -10 -10 -9 -------- Run | Yrd Mat Min Exi Min Hostile Shots Fired 97 | . 44 19 . 34 Missed 24 | . 12 5 . 7 Damage Taken 1350 | . 425 245 . 680 Core 262 | . 84 34 . 144 Absorbed by Shields . | . . . . . Core Remaining (%) 100 | 100 . . . . Volleys Fired 36 | 3 16 8 . 9 Largest 2 | 2 2 2 . 2 Hottest 89 | 60 60 86 . 89 Shots Fired 72 | 6 32 16 . 18 Gun 55 | 6 32 8 . 9 Cannon . | . . . . . Launcher 17 | . . 8 . 9 Special . | . . . . . Kinetic 22 | 3 16 3 . . Thermal 14 | . . 5 . 9 Explosive 17 | . . 8 . 9 Electromagnetic 19 | 3 16 . . . Robot Hit Streak 8 | 2 6 8 . 4 Robot Miss Streak 8 | 2 5 3 . 8 Penetration Max . | . . . . . Secondary Targets . | . . . . . Shots Hit Robots 37 | 3 18 7 2 7 Core Hits 59 | 2 5 18 . 34 Critical Kills . | . . . . . Critical Parts Destroyed . | . . . . . Critical Strikes 3 | . 2 . . 1 Burn 1 | . . . . 1 Corrupt 2 | . 2 . . . Melee Attacks 2 | . . . 2 . Impact . | . . . . . Slashing . | . . . . . Piercing . | . . . . . Sneak Attacks 2 | . . . 2 . Combat Hostiles . | . . . . . Follow-up Attacks . | . . . . . Damage Inflicted 1727 | 44 252 416 . 1015 Guns 434 | 44 252 65 . 73 Cannons . | . . . . . Explosions 1293 | . . 351 . 942 Melee . | . . . . . Ramming . | . . . . . Kinetic 141 | 14 90 37 . . Thermal 101 | . . 28 . 73 Explosive 1293 | . . 351 . 942 Electromagnetic 192 | 30 162 . . . Impact . | . . . . . Slashing . | . . . . . Piercing . | . . . . . Highest Corruption 5 | . . . . 5 Average Corruption 5 | . . . . 5 Corruption Purged . | . . . . . Corruption Blocked . | . . . . . Overload Shots . | . . . . . Overflow Damage 36 | . . . . 36 Projectiles . | . . . . . Explosions 36 | . . . . 36 Melee . | . . . . . Knockbacks . | . . . . . Impact . | . . . . . Kinetic . | . . . . . Secondary . | . . . . . Self-Inflicted Damage 46 | . . 46 . . Shots 2 | . . 2 . . Rammed . | . . . . . Targets Rammed . | . . . . . Kicked . | . . . . . Crushed . | . . . . . Highest Temperature 209 | 20 66 96 . 209 Average Temperature 70 | 15 50 35 . 129 Received Heat Transfer 327 | . 255 72 . . Siege Activations . | . . . . . Robots Corrupted . | . . . . . Combat Hostiles . | . . . . . Parts Fried . | . . . . . Impact Corruptions . | . . . . . Robots Melted . | . . . . . Combat Hostiles . | . . . . . Parts Melted . | . . . . . Heat Transferred 333 | . . 74 . 259 Parts Sabotaged . | . . . . . Parts Stolen . | . . . . . Parts Stripped . | . . . . . Power Chain Reactions . | . . . . . Alert | -11 -10 -10 -10 -9 ------- Run | Yrd Mat Min Exi Min Peak Influence 151 | 5 88 151 . 72 Initial 3 | . 3 . . . Average 50 | 2 38 58 . 32 Maximum Alert Level . | . . . . . Low Security (%) 100 | 100 100 100 . 100 Level 1 . | . . . . . Level 2 . | . . . . . Level 3 . | . . . . . Level 4 . | . . . . . Level 5 . | . . . . . High Security . | . . . . . Max Security . | . . . . . Squads Dispatched 3 | . 2 . . 1 Investigation 2 | . 2 . . . Extermination . | . . . . . Reinforcement 1 | . . . . 1 Assault . | . . . . . Garrison . | . . . . . Intercept . | . . . . . Searches Triggered . | . . . . . Construction Impeded 1 | . . . . 1 Haulers Reinforced . | . . . . . Active Scanning Responses . | . . . . . Cargo Convoy Interrupts . | . . . . . Stealth | -11 -10 -10 -10 -9 --------- Run | Yrd Mat Min Exi Min Distress Signals 1 | . 1 . . . Communications Jammed . | . . . . . Distress Signals . | . . . . . Times Spotted 41 | . 11 8 . 22 Peak Tracking Total 12 | . 5 4 . 12 Tactical Retreats 2 | . . 1 . 1 Traps | -11 -10 -10 -10 -9 ------- Run | Yrd Mat Min Exi Min Traps Triggered 1 | . 1 . . . Indirectly . | . . . . . Trap Hack Attempts . | . . . . . Triggered . | . . . . . Disarmed . | . . . . . Reprogrammed . | . . . . . Reused . | . . . . . Traps Extracted . | . . . . . Installed . | . . . . . Triggered . | . . . . . Machines | -11 -10 -10 -10 -9 ---------- Run | Yrd Mat Min Exi Min Machines Disabled 2 | . . 2 . . Max in Single Turn 2 | . . 2 . . Machines Repaired . | . . . . . Machines Dismantled . | . . . . . Machines Sabotaged . | . . . . . Overloaded Fab Kills . | . . . . . Hacking | -11 -10 -10 -10 -9 --------- Run | Yrd Mat Min Exi Min Machines Accessed 2 | . 1 . 1 . Terminals 1 | . 1 . . . Fabricators . | . . . . . Repair Stations . | . . . . . Recycling Units . | . . . . . Scanalyzers . | . . . . . Garrison Access . | . . . . . Total Hacks 5 | . 4 . 1 . Successful 3 | . 2 . 1 . Failed 2 | . 2 . . . Catastrophic . | . . . . . Database Lockouts . | . . . . . Manual 5 | . 4 . 1 . Terminals 4 | . 4 . . . Fabricators . | . . . . . Repair Stations . | . . . . . Recycling Units . | . . . . . Scanalyzers . | . . . . . Garrison Access . | . . . . . Terminal Hacks 1 | . . . 1 . Derelict Proto ID Bank 1 | . . . 1 . Fabricator Hacks . | . . . . . Repair Station Hacks . | . . . . . Recycling Unit Hacks . | . . . . . Scanalyzer . | . . . . . Garrison Access Hacks . | . . . . . Unauthorized Hacks 2 | . 2 . . . Terminals 2 | . 2 . . . Botnet 1 | . 1 . . . Operators 1 | . 1 . . . Fabricators . | . . . . . Repair Stations . | . . . . . Recycling Units . | . . . . . Scanalyzers . | . . . . . Garrison Access . | . . . . . Data Cores Recovered . | . . . . . Used . | . . . . . Hacking Detections 1 | . 1 . . . Full Trace Events 1 | . 1 . . . Feedback Events . | . . . . . Feedback Blocked . | . . . . . Robot Schematics Acquired . | . . . . . Robots Built . | . . . . . Authchips . | . . . . . Time . | . . . . . Total Robot Build Rating . | . . . . . Part Schematics Acquired . | . . . . . Parts Built . | . . . . . Authchips . | . . . . . Time . | . . . . . Total Part Build Rating . | . . . . . Parts Repaired . | . . . . . Time . | . . . . . Parts Recycled . | . . . . . Recycled Matter . | . . . . . Retrieved Matter . | . . . . . Retrieved Components . | . . . . . Parts Scanalyzed . | . . . . . Part Schematics Acquired . | . . . . . Parts Damaged . | . . . . . Bothacking | -11 -10 -10 -10 -9 ------------ Run | Yrd Mat Min Exi Min Used RIF Installer . | . . . . . Robots Hacked 2 | . . . 2 . Non-combat 1 | . . . 1 . Combat 1 | . . . 1 . Robot Hacks Applied 2 | . . . 2 . parse_system 2 | . . . 2 . Relay Couplers Released . | . . . . . Fabnet Peak Effective % . | . . . . . Robots Rewired . | . . . . . Allies Hacked . | . . . . . Hacks Repelled . | . . . . . Allies | -11 -10 -10 -10 -9 -------- Run | Yrd Mat Min Exi Min Total Allies 1 | . . . . 1 Largest Group 1 | . . . . 1 Highest-Rated Group 31 | . . . . 31 Highest-Rated Ally 31 | . . . . 31 Total Orders . | . . . . . Ally Attacks 7 | . . . . 7 Total Damage 83 | . . . . 83 Kills 1 | . . . . 1 Allies Corrupted . | . . . . . Allies Melted . | . . . . . Intel | -11 -10 -10 -10 -9 ------- Run | Yrd Mat Min Exi Min Robot Analysis Total . | . . . . . Derelict Logs Recovered 1 | . . 1 . . Drone Launches . | . . . . . Drone Recoveries . | . . . . . Exploration | -11 -10 -10 -10 -9 ------------- Run | Yrd Mat Min Exi Min Turns Passed 2387 | 59 436 1096 758 38 Spaces Moved 744 | 33 130 328 248 5 Core 17 | 16 . . . 1 Treads 727 | 17 130 328 248 4 Legs . | . . . . . Wheels . | . . . . . Hover . | . . . . . Flight . | . . . . . Fastest Speed 50 | 50 160 320 160 160 Average Speed 300 | 114 295 321 301 204 Slowest Speed 480 | 160 320 480 320 300 Overloaded Moves . | . . . . . Propulsion Burnouts . | . . . . . Robots Hopped . | . . . . . Cave-ins Triggered . | . . . . . Exploration Rate (%) 32 | 3 32 55 60 11 Regions Visited 4 Branch Regions 3 Pre-discovered Areas 1 | . . 1 . . Known Exits Taken 3 | . 1 1 1 . Unknown Exits Taken 1 | 1 . . . . Scrap Searched 1 | . . 1 . . Spaces Dug . | . . . . . Terrain Destroyed 115 | . . 63 . 52 Melee . | . . . . . Projectile . | . . . . . AOE 115 | . . 63 . 52 Terrain Rammed . | . . . . . Walls Destroyed . | . . . . . Machines Disabled . | . . . . . Actions | -11 -10 -10 -10 -9 --------- Run | Yrd Mat Min Exi Min Total 825 | 48 152 354 256 15 Wait 5 | . . 5 . . Move 740 | 32 129 327 247 5 Hop . | . . . . . Pick Up 20 | 7 4 7 2 . Fast Attach 1 | 1 . . . . Attach 11 | 5 2 2 1 1 Detach 1 | . . . 1 . Swap 6 | . . 4 2 . Drop 3 | . 1 1 1 . Fire 36 | 3 16 8 . 9 Melee 2 | . . . 2 . Ram . | . . . . . Kick . | . . . . . Crush . | . . . . . Escape Stasis . | . . . . . Rewire . | . . . . . Trap . | . . . . . Miscellaneous . | . . . . . Route ------- -11/Scrapyard -10/Materials -10/Mines (discovered 2 exits: *Mat / *Exi) -10/Exiles -9/Mines (discovered 1 exit: [*Mat]) History --------- Turn | Location | Event 8 | -11/Scrapyard | Discovered new exit (range 16) 60 | -11/Scrapyard | Entered Materials 305 | -10/Materials | Build established: Mutant 473 | -10/Materials | Discovered new exit (range 8) 493 | -10/Materials | Identified exit to Mines 496 | -10/Materials | Entered Mines 562 | -10/Mines | Discovered new exit (range 11) 594 | -10/Mines | Identified exit to Materials 616 | -10/Mines | Learned location of Storage (-7) 706 | -10/Mines | Found a hidden stash of uninstalled traps 826 | -10/Mines | Build established: Scavenger-Mutant 1195 | -10/Mines | Found a damaged Exp. Sensor Array with a note attached 1202 | -10/Mines | Found Prototype Device 1383 | -10/Mines | Received a Rocket Launcher from a helpful Derelict 1579 | -10/Mines | Deemed a non-threat by the Exiles lab entrance 1579 | -10/Mines | Discovered new exit (range 5) 1589 | -10/Mines | Identified exit to Exiles 1592 | -10/Mines | Entered Exiles 1672 | -10/Exiles | Met 8R-AWN 1733 | -10/Exiles | Met EX-HEX 1819 | -10/Exiles | Met EX-BIN 1864 | -10/Exiles | Aligned with FarCom system 1867 | -10/Exiles | Given EX-Vault access code 1944 | -10/Exiles | Opened EX-Vault 2002 | -10/Exiles | Found Field Lobotomy Kit 2063 | -10/Exiles | Warned to stay clear of 0b10 Research branches 2156 | -10/Exiles | Met EX-DEC 2330 | -10/Exiles | Discovered new exit (range 14) 2348 | -10/Exiles | Identified exit to Mines 2350 | -10/Exiles | Left Exiles lab with Field Lobotomy Kit 2350 | -10/Exiles | Entered Mines 2351 | -9/Mines | Assembled infested the area 2352 | -9/Mines | Discovered new exit (range 11) 2353 | -9/Mines | Core integrity fell below 50% 2356 | -9/Mines | Assisted by a Guerilla fighting off Assembled 2357 | -9/Mines | Met a Derelict testing a Signal Generator 2357 | -9/Mines | Met a Derelict bent on vengeance 2384 | -9/Mines | Core integrity fell below 20% 2388 | -9/Mines | Destroyed by as-09231 with Assembled Blade Last Messages --------------- The unstable cave ceiling collapses. D-53 Grenadier destroyed. The unstable cave ceiling collapses. VG-9LR(g) destroyed. K-01 Serf collects debris. as-92350 destroyed. as-46976 destroyed. as-59328 destroyed. as-61115 destroyed. as-34713 destroyed. Destroyed Asb. Hover Unit. Lgt. Treads destroyed. K-01 Serf collects debris. The unstable cave ceiling collapses. Lgt. Nuclear Core destroyed. as-06156 destroyed. as-53500 destroyed. K-01 Serf collects debris. Beam Rifle destroyed. System corrupted by crushing effect (+5). Map ----- +----------------------------------------------------+ | ??????????????????????????????????????????????? | | ??????????????????????????????????????????????? | | ??????????????????????????????????????????????? | | ??????????????????????????????????????????????? | | ??????????????????????????????????????????????? | | ??????????????????????????????????????????????? | | ??????????????????????????????????????????????? | | ??????????????????????????????????????????????? | | ??????????????????????????????????????????????? | | ??????????????????????????????????????????????? | | ??????????????????????????????????????????????? | | ??????????????????????????????????????????????? | | ??????????????????????????? ?????????????????? | | ?????????????????????????## ??????????????????? | | ????????????????????????# ?????? ???????????? | | ???????????????????????# #??? #???????????? | | ?????????????????????## """ ###$ #???????????? | | ??????????????######## """ #???????????? | | ????????? ##### " ?????????????? | | ?????????? #???????????????? | | ???????????# #??????gg???????? | | ???????????# #??????g?????????? | | ??????????## a #????????????????? | | ??????????#< a ##??????????????????? | | ????????# aa #??????????????????? | | ???????# a a@ #??????????????????? | | ??????? a a #??????????????????? | | ??????? a k ##??????????????????? | | ???????? # % % ##???????????????????? | | ???????? # # #????????????????????? | | ????????? ??#?## k% #????????????????????? | | ????????????????# ##????????????????????? | | ????????????????## <&#?????????????????????? | | ?????????????????#### #?????????????????????? | | ????????????????????## ##?????????????????????? | | ??????????????????????#???????????????????????? | | ??????????????????????????????????????????????? | | ??????????????????????????????????????????????? | | ??????????????????????????????????????????????? | | ??????????????????????????????????????????????? | | ??????????????????????????????????????????????? | | ??????????????????????????????????????????????? | | ??????????????????????????????????????????????? | | ??????????????????????????????????????????????? | | ??????????????????????????????????????????????? | | | | | | | | | | | +----------------------------------------------------+ Best States ------------- Heat Dissipation 25 Energy Generation 14 Energy Capacity 265 Matter Stores 275 Matter Capacity 300 Sight Range 16 Terrain Scan Density 10 Evasion (%) 40 Recoil Reduction 2 Item Schematics ----------------- None Robot Schematics ------------------ None Fabricated ------------ Nothing Alien Tech Used ----------------- None Achievements -------------- None Challenges ------------ None Game ------ Seed LaserRagnarokPerforator Manual? 0 Play Time 00:11:20 Cumulative 4.8 hours Start 2025.05.05 @ 16:26:07 End 2025.05.05 @ 16:36:04 Sessions 1 Manual Loads 0 Difficulty Rogue Special Mode None Game No. 19 Rogue 19 Adventurer 0 Explorer 0 Win Type - Total 0 Types 0/0/0/0/0/0/0/0/0 Lore% 8 Gallery% 12 Achievement% 14 Wizard Run 0 Options --------- Layout 1 ASCII 0 Keyboard 0 Movement Mouse Keybinds 0 Fullscreen 2 Font 24/Smallcaps Map View 50x35 Zoom Use 0% Tactical HUD 0 Map Filters NONE Filters NONE Steam 1 RUN: 66987785-a225-46c4-88d8-1d81dade408a